Cogmind - Beta 13 X1 @@@ ROGUE MODE // 2023.10.05 @ 13:19:50 Player: DuckBoy Result: Core destroyed Performance ------------- Evolutions (9) 4500 Regions Visited (26) 5200 Robots Destroyed (160) 800 Value Destroyed (6457) 6457 Prototype IDs (29) 580 Alien Tech Used (0) 0 Bonus (9302) 9302 TOTAL SCORE: 26839 Bonus ------- High Alert Combat Kills 601 Follower Combat Kills 3401 Entered Garrisons 2000 Used RIF Installer 3500 Aligned with FarCom 300 Friendly Fire -500 Cogmind --------- Core Integrity 0/1600 Matter 153/300 Energy 46/100 System Corruption 38% Temperature Cool (0) Movement Core (50) Location -1/Access Parts ------- > --- POWER (3) -------- (None) > --- PROPULSION (8) --- (None) > --- UTILITY (10) ----- Terrain Scan Processor Advanced Targeting Computer > --- WEAPON (4) ------- (None) > --- INVENTORY (5) ---- (None) Peak State ------------ > --- POWER ------------ Light Particle Reactor Light Quantum Reactor Improved Quantum Reactor > --- PROPULSION ------- Advanced Medium Treads Advanced Medium Treads Advanced Medium Treads Myomer Leg Improved Antigrav System Q-thruster Q-thruster Q-thruster > --- UTILITY ---------- Terrain Scan Processor Melee Analysis Suite Advanced Melee Analysis Suite Improved Particle Charger Advanced Transmission Jammer Advanced Reaction Control System Improved Focal Shield Advanced Hardlight Generator Advanced System Restoration Module > --- WEAPON ----------- Nova Cannon Linear Accelerator Linear Accelerator > --- INVENTORY -------- Impulse Thruster Array Compact HERF Cannon Nova Cannon Flail [Rating: 161] Favorites ----------- Power Micro Antimatter Reactor Engine Improved Deuterium Engine Power Core Micro Fission Core Reactor Micro Antimatter Reactor Propulsion Compact Wheel Treads Armored Treads Leg Aluminum Leg Wheel Compact Wheel Hover Unit Antigrav System Flight Unit Q-thruster Utility Hacking Suite Device Advanced Heat Sink Storage High-capacity Storage Unit Processor Target Analyzer Hackware Hacking Suite Protection Layered Medium Armor Plating Weapon Heavy Ion Cannon Energy Gun Advanced Beam Rifle Energy Cannon Heavy Ion Cannon Ballistic Gun AWS/Gauss Ballistic Cannon Linear Accelerator Launcher Grenade Launcher Special Weapon Improved Remote Datajack Impact Weapon Flail Slashing Weapon Power Sword Piercing Weapon Spear Build | -11 -10 -10 -10 -9 -8 -8 -8 -8 -8 -8 -7 -7 -6 -6 -6 -5 -5 -4 -4 -4 -4 -3 -3 -2 -2 -1 ------- Run | Jun Mat Min Exi Min Mat Gar Mat Gar Mat Gar Fac Gar Fac Gar Fac Fac Gar Fac Gar Fac Gar Res Gar Res Gar Acc Slots Evolved 18 | . . . . . 4 . . . . . 2 . 2 . . 2 . 2 . . . 2 . 2 . 2 Power 2 | . . . . . . . . . . . . . 1 . . . . . . . . 1 . . . . Propulsion 6 | . . . . . 1 . . . . . 1 . . . . 1 . 1 . . . 1 . 1 . . Utility 8 | . . . . . 3 . . . . . 1 . 1 . . 1 . 1 . . . . . 1 . . Weapon 2 | . . . . . . . . . . . . . . . . . . . . . . . . . . 2 Parts Attached 330 | 6 8 1 3 . 24 16 6 8 10 2 26 16 44 17 7 6 16 39 7 7 6 18 . 3 6 28 Power 30 | 1 1 . . . 2 2 1 2 1 . 3 1 4 2 . . 1 1 . 2 . 3 . 1 1 1 Engine 15 | 1 1 . . . 1 1 1 1 1 . 3 . 4 . . . . . . 1 . . . . . . Core 4 | . . . . . 1 1 . 1 . . . 1 . . . . . . . . . . . . . . Reactor 11 | . . . . . . . . . . . . . . 2 . . 1 1 . 1 . 3 . 1 1 1 Propulsion 79 | 2 3 . 1 . 4 2 5 1 4 . 2 5 8 10 4 1 2 6 1 1 1 6 . 1 3 6 Treads 21 | 1 1 . . . 3 1 4 1 1 . 1 . . 2 1 1 . . 1 . . 3 . . . . Leg 3 | . 2 . . . . . . . . . . . . . . . . . . . . . . . 1 . Wheel 28 | 1 . . 1 . 1 1 1 . 2 . 1 2 8 7 2 . . . . . . . . . . 1 Hover 3 | . . . . . . . . . . . . 1 . . . . . . . . 1 . . 1 . . Flight 24 | . . . . . . . . . 1 . . 2 . 1 1 . 2 6 . 1 . 3 . . 2 5 Utility 117 | 1 2 . 1 . 4 2 . 5 2 . 18 6 23 3 1 4 6 18 1 4 1 7 . 1 1 6 Device 50 | . 1 . . . 2 1 . 5 . . 1 3 7 3 1 3 4 3 1 3 1 7 . 1 1 2 Storage 6 | 1 1 . 1 . . . . . . . . 1 2 . . . . . . . . . . . . . Processor 6 | . . . . . . . . . . . . . 1 . . . . 1 . 1 . . . . . 3 Hackware 46 | . . . . . 2 1 . . 2 . 14 1 12 . . 1 . 12 . . . . . . . 1 Protection 9 | . . . . . . . . . . . 3 1 1 . . . 2 2 . . . . . . . . Artifact . | . . . . . . . . . . . . . . . . . . . . . . . . . . . Weapon 104 | 2 2 1 1 . 14 10 . . 3 2 3 4 9 2 2 1 7 14 5 . 4 2 . . 1 15 Energy Gun 21 | 1 2 . . . 5 4 . . 1 . . 3 3 1 . . 1 . . . . . . . . . Energy Cannon 38 | . . . . . 4 2 . . 1 2 1 1 2 . . . 2 6 4 . 2 1 . . . 10 Ballistic Gun 9 | 1 . . 1 . 3 . . . . . . . . . . . 3 . . . . 1 . . . . Ballistic Cannon 8 | . . . . . . . . . . . . . . . 1 . . 1 . . . . . . 1 5 Launcher 5 | . . 1 . . 1 3 . . . . . . . . . . . . . . . . . . . . Special Weapon 3 | . . . . . . . . . . . . . 3 . . . . . . . . . . . . . Impact Weapon 2 | . . . . . . . . . . . . . . . . . . . . . 2 . . . . . Slashing Weapon 11 | . . . . . . . . . . . . . 1 1 1 1 1 5 1 . . . . . . . Piercing Weapon 7 | . . . . . 1 1 . . 1 . 2 . . . . . . 2 . . . . . . . . Special Melee Weapon . | . . . . . . . . . . . . . . . . . . . . . . . . . . . Unidentified Prototypes 6 | . . . . . 1 . . . 2 . . . . . . . . 1 . . . . . 1 . 1 Corrupted Parts 2 | . . . . . . . . . . . . . 1 . . . 1 . . . . . . . . . System Corruption 8 | . . . . . . . . . . . . . 1 . . . 7 . . . . . . . . . Parts Lost 102 | . 3 . . . 1 5 1 5 6 . 1 11 9 2 . . 3 7 4 3 9 . 4 . . 28 Power 13 | . . . . . . 1 . 1 . . 1 1 1 . . . 1 . 2 1 1 . . . . 3 Propulsion 37 | . 1 . . . 1 1 1 1 2 . . 5 3 1 . . 2 1 1 1 5 . . . . 11 Utility 37 | . . . . . . 2 . 3 2 . . 3 5 1 . . . 5 1 . 3 . 4 . . 8 Weapon 15 | . 2 . . . . 1 . . 2 . . 2 . . . . . 1 . 1 . . . . . 6 Highest Loss Streak 10 | . 2 . . . 1 2 1 2 5 . 1 8 8 2 . . 1 2 4 3 9 . 4 . . 10 To Critical Strikes 1 | . . . . . . . . . . . . . . . . . . . . . . . . . . 1 Average Slot Usage (%) 84 | . 90 98 93 85 87 92 99 97 91 90 84 80 80 90 89 93 87 79 79 82 75 74 83 73 79 60 Engine 4 | . 7 14 14 14 4 . 7 8 9 9 4 5 5 10 . . . . . 3 4 . . . . . Core 1 | . . . . . 4 8 1 . . . . 1 2 . . . . . . . . . . . . . Reactor 3 | . . . . . . . . . . . . . . 2 13 11 10 9 6 . . 7 9 12 13 6 Treads 8 | . 9 . . . 10 20 16 25 19 9 7 5 . 2 12 11 11 4 1 5 4 13 14 13 13 4 Leg 1 | . 16 28 17 14 . . . . . . . . . . . . . . . . . . . . 1 2 Wheel 9 | . 1 . 10 14 13 5 9 . 1 18 21 15 16 20 5 11 3 . . . . . . . . . Flight 4 | . . . . . . . . . . . . 1 2 1 . . 1 22 29 25 17 5 14 13 10 11 Device 13 | . 13 14 14 14 14 9 9 17 19 9 7 10 8 14 22 26 21 9 7 11 13 19 22 16 19 12 Storage 6 | . 14 14 14 14 9 9 9 9 9 9 7 6 5 6 6 5 5 5 5 5 4 . . . . . Processor 2 | . . . . . . . . . . . . . 1 6 6 5 4 2 5 8 10 9 9 8 8 13 Hackware 12 | . . . . . 16 19 27 18 12 18 18 21 17 4 . 4 5 13 15 15 14 4 2 . . 2 Protection 2 | . . . . . . . . . . . 3 1 2 6 6 1 6 4 . . . . . . . . Energy Gun 3 | . 21 14 8 . 5 11 . . 2 2 . 1 6 3 . . . . . . . . . . . . Energy Cannon 3 | . . . . . 2 5 18 18 14 15 5 . . . . . 3 1 2 . 2 . 4 4 4 2 Slashing Weapon 1 | . . . . . . . . . . . . . 2 8 7 5 2 3 4 4 . . . . . . Piercing Weapon 1 | . . . . . . . . . . . 5 5 . . . . . . . . . . . . . . Naked Turns . | . . . . . . . . . . . . . . . . . . . . . . . . . . . Heaviest Build 105 | 11 17 18 54 54 65 62 66 72 72 66 86 72 66 68 84 84 91 89 51 42 37 54 54 68 89 105 Greatest Support 95 | 20 40 20 20 16 26 60 66 66 64 20 36 36 64 95 95 28 95 95 41 35 35 90 90 90 90 90 Greatest Overweight (x) 7 | 1 . . 3 3 4 3 3 1 5 3 4 7 5 2 2 2 2 1 1 1 1 . . . . 4 Average Overweight (x) 1 | . . . 1 3 2 1 1 . 1 2 1 1 1 . . 2 . . . . . . . . . . Largest Inventory Capacity 20 | 8 10 10 20 20 20 20 20 20 20 20 20 20 20 15 15 15 15 15 15 15 15 5 5 5 5 5 Average Capacity 15 | 7 9 10 17 20 20 20 20 20 20 20 20 18 14 15 15 15 15 15 15 15 13 5 5 5 5 5 Most Carried 20 | 4 8 8 10 10 20 20 20 20 20 20 20 20 20 15 15 15 15 15 12 14 13 5 4 4 5 5 Average Carried 13 | 1 7 7 8 10 18 17 18 19 18 19 18 10 12 11 14 14 14 10 10 12 11 4 4 4 4 3 Final Capacity 20 | 8 10 10 20 20 20 20 20 20 20 20 20 20 15 15 15 15 15 15 15 15 5 5 5 5 5 5 Final Carried 20 | 4 8 7 10 10 20 16 20 19 19 20 11 20 7 15 15 15 15 12 10 13 5 4 4 4 5 . Class Distribution -------------------- 29% | Hacker-Mutant 25% | Mutant 20% | Scavenger-Mutant 12% | Commander-Mutant 3% | Infiltrator-Mutant 3% | Assassin Dominant Class ---------------- Mutant | -10/Materials Mutant | -10/Mines Mutant | -10/Exiles Mutant | -9/Mines Hacker-Mutant | -8/Materials Hacker-Mutant | -8/Garrison Hacker-Mutant | -8/Materials Hacker-Mutant | -8/Garrison Hacker-Mutant | -8/Materials Hacker-Mutant | -8/Garrison Scavenger-Mutant | -7/Factory Commander-Mutant | -7/Garrison Scavenger-Mutant | -6/Factory Commander-Mutant | -6/Garrison Mutant | -6/Factory Infiltrator-Mutant | -5/Factory Mutant | -5/Garrison Hacker-Mutant | -4/Factory Hacker-Mutant | -4/Garrison Hacker-Assassin | -4/Factory Mutant | -4/Garrison Assassin | -3/Research Assassin | -3/Garrison Mutant | -2/Research Mutant | -2/Garrison Mutant | -1/Access Resources | -11 -10 -10 -10 -9 -8 -8 -8 -8 -8 -8 -7 -7 -6 -6 -6 -5 -5 -4 -4 -4 -4 -3 -3 -2 -2 -1 ----------- Run | Jun Mat Min Exi Min Mat Gar Mat Gar Mat Gar Fac Gar Fac Gar Fac Fac Gar Fac Gar Fac Gar Res Gar Res Gar Acc Matter Collected 4337 | 260 155 40 . 11 304 235 52 75 80 . 199 223 530 248 283 . 221 585 132 60 . 13 . 15 82 534 Remotely . | . . . . . . . . . . . . . . . . . . . . . . . . . . . Salvage Created 7114 | . 402 61 . . 784 808 268 715 627 . 222 430 958 510 161 . 179 665 . 128 . . . 15 75 106 Parts 380 | . 35 1 . . 55 35 13 29 32 . 15 9 32 25 14 . 17 51 . 10 . . . 2 3 2 Haulers Intercepted 1 | . . . . . . . . . 1 . . . . . . . . . . . . . . . . . Recyclers Shooed 2 | . . . . . . . . . . . . . 1 . . . . . . 1 . . . . . . Parts Field Recycled . | . . . . . . . . . . . . . . . . . . . . . . . . . . . Retrieved Matter . | . . . . . . . . . . . . . . . . . . . . . . . . . . . Parts Self-Destructed . | . . . . . . . . . . . . . . . . . . . . . . . . . . . Prevented . | . . . . . . . . . . . . . . . . . . . . . . . . . . . Kills | -11 -10 -10 -10 -9 -8 -8 -8 -8 -8 -8 -7 -7 -6 -6 -6 -5 -5 -4 -4 -4 -4 -3 -3 -2 -2 -1 ------- Run | Jun Mat Min Exi Min Mat Gar Mat Gar Mat Gar Fac Gar Fac Gar Fac Fac Gar Fac Gar Fac Gar Res Gar Res Gar Acc Combat Hostiles Destroyed 117 | . 10 2 . . 15 20 5 16 9 . 4 4 6 6 3 . 3 10 . . . . . . 1 3 Melee 22 | . . . . . . 2 . . 2 . 3 2 . 4 . . 1 8 . . . . . . . . Guns 36 | . 10 . . . 9 9 . . 1 . . 1 3 2 . . 1 . . . . . . . . . Cannons 39 | . . . . . . 3 5 16 6 . . 1 . . 3 . . 1 . . . . . . 1 3 AOE 15 | . . 2 . . 6 3 . . . . 1 . 3 . . . . . . . . . . . . . Classes Destroyed 15 | . 4 . . . 4 . . . 1 . 1 . 2 . 1 . 1 1 . . . . . . . . Worker 11 | . . . . . 1 . 2 . 3 . 2 . 1 . 1 . . . . . . . . 1 . . Builder 4 | . . . . . 2 . . . . . . . . . 1 . . . . 1 . . . . . . Hauler 1 | . . . . . . . . . 1 . . . . . . . . . . . . . . . . . Recycler 11 | . . . . . 2 . . . 2 . 1 . 5 . . . . . . 1 . . . . . . Mechanic 1 | . . . . . . . . . . . . . 1 . . . . . . . . . . . . . Operator 4 | . 2 . . . . . . . 1 . 1 . . . . . . . . . . . . . . . Watcher 8 | . 2 . . . 3 . 1 . 1 . . . . . . . . . . . . . . . . 1 Swarmer 27 | . 2 . . . 4 6 2 3 4 . 3 . . 2 . . 1 . . . . . . . . . Cutter 1 | . . . . . . . . . . . . . . . . . . 1 . . . . . . . . Grunt 53 | . 8 2 . . 9 12 . 11 5 . . 1 1 1 1 . . 1 . . . . . . 1 . Sentry 11 | . . . . . 2 2 3 2 . . . . . 2 . . . . . . . . . . . . Hunter 4 | . . . . . . . . . . . . . 2 1 . . 1 . . . . . . . . . Programmer 21 | . . . . . . . . . . . 1 3 3 1 2 . . 8 . . . . . . . 3 Behemoth 2 | . . . . . . . . . . . . . . . . . 1 1 . . . . . . . . Infiltrator 1 | . . . . . . . . . . . . . . . 1 . . . . . . . . . . . Best Kill Streak 9 | . 3 2 . . 9 4 4 3 5 . 3 1 3 3 1 . 1 2 . 2 . . . 1 1 1 Combat Bots Only 6 | . 3 2 . . 6 4 4 3 2 . 3 1 2 3 1 . 1 2 . . . . . . 1 1 Max Kills in Single Turn 3 | . 2 1 . . 3 2 1 1 2 . 1 1 2 1 1 . 1 2 . 1 . . . 1 1 1 Gunslinging 1 | . 1 . . . . . . . . . . . . . . . . . . . . . . . . . Exploded 2 | . . 1 . . 2 2 . . . . 1 . 2 . . . . . . . . . . . . . Melee 2 | . . . . . . 1 . . 1 . 1 1 . 1 . . 1 2 . . . . . . . . Uniques/NPCs Destroyed . | . . . . . . . . . . . . . . . . . . . . . . . . . . . Combat | -11 -10 -10 -10 -9 -8 -8 -8 -8 -8 -8 -7 -7 -6 -6 -6 -5 -5 -4 -4 -4 -4 -3 -3 -2 -2 -1 -------- Run | Jun Mat Min Exi Min Mat Gar Mat Gar Mat Gar Fac Gar Fac Gar Fac Fac Gar Fac Gar Fac Gar Res Gar Res Gar Acc Damage Taken 15850 | . 716 87 . . 284 1113 145 790 671 . 513 1183 1200 400 407 . 621 1223 311 386 474 22 484 206 102 4512 Core 3679 | . 164 38 . . 64 180 28 82 108 . 30 274 419 96 22 . 68 85 . 46 225 . 79 18 . 1653 Absorbed by Shields 1414 | . . . . . 56 199 . 176 168 . . 147 . . 366 . 197 73 . . . . . . 32 . Reduced by Siege Mode 37 | . . . . . . . . . . . . . . . . . 37 . . . . . . . . . Ignored by Resistances 259 | . . . . . . . . . . . . . . . 39 . . 28 . . . 8 . 74 . 110 Regen/Repaired (Parts) 24 | . . . . . . . . . . . . . 20 4 . . . . . . . . . . . . Core Remaining (%) 64 | 100 . . . 19 . . . . . 16 . 56 . . 36 . 93 . . . 69 . 93 . 98 . Volleys Fired 663 | . 44 5 . . 28 68 19 50 36 1 2 38 79 10 15 . 57 26 35 . 15 3 43 4 12 73 Largest 3 | . 2 2 . . 2 2 2 2 2 1 2 1 2 1 1 . 2 1 1 . 1 1 1 1 2 3 Hottest 245 | . 80 70 . . 140 140 130 130 130 65 130 65 122 61 66 . 134 94 105 . 105 113 113 113 179 245 Shots Fired 922 | . 86 8 . . 85 107 30 99 72 1 4 37 83 9 18 . 59 26 34 . 15 3 44 4 13 85 Gun 367 | . 86 5 . . 61 82 . . 16 . . 20 51 9 . . 37 . . . . . . . . . Cannon 533 | . . . . . 16 19 30 99 56 1 4 17 27 . 18 . 22 26 34 . 15 3 44 4 13 85 Launcher 17 | . . 3 . . 8 6 . . . . . . . . . . . . . . . . . . . . Special 5 | . . . . . . . . . . . . . 5 . . . . . . . . . . . . . Kinetic 179 | . 30 . . . 53 . . . . . . . . . 18 . 37 2 . . . . . . 1 38 Thermal 650 | . 48 5 . . 24 52 30 99 72 1 4 37 78 9 . . 12 22 34 . 15 3 44 4 12 45 Explosive 17 | . . 3 . . 8 6 . . . . . . . . . . . . . . . . . . . . Electromagnetic 71 | . 8 . . . . 49 . . . . . . . . . . 10 2 . . . . . . . 2 Robot Hit Streak 24 | . 12 3 . . 13 8 6 10 11 . 3 22 24 1 5 . 12 2 . . . . . 2 4 6 Robot Miss Streak 6 | . 3 1 . . 2 4 1 3 4 . 1 1 4 3 3 . 5 6 . . . . . . . 2 Penetration Max 1 | . . . . . . . . . . . . . . . . . 1 . . . . . . . . . Secondary Targets 3 | . 1 . . . . 2 . . . . . . . . . . . . . . . . . . . . Max Gunslinging Chain 1 | . 1 . . . . 1 . . . . . . . . . . . . . . . . . . . . Autonomous 54 | . . . . . 54 . . . . . . . . . . . . . . . . . . . . . Shots Hit Robots 514 | . 58 5 . . 47 53 17 60 49 . 18 48 43 17 12 1 28 23 . 5 . . . 2 2 26 Core Hits 244 | . 28 5 . . 37 29 8 25 23 . 6 17 19 11 4 . 8 11 . 3 . . . 1 2 7 Critical Kills 2 | . . . . . . 1 . . . . . . . . . . 1 . . . . . . . . . Critical Parts Destroyed 1 | . . . . . . . . . . . . . . . . . 1 . . . . . . . . . Critical Strikes 29 | . . . . . . 3 . . 2 . . 3 7 3 2 . 4 3 . . . . . . . 2 Burn 8 | . . . . . . . . . 1 . . 2 5 . . . . . . . . . . . . . Meltdown 1 | . . . . . . 1 . . . . . . . . . . . . . . . . . . . . Destroy 3 | . . . . . . . . . . . . . . . . . 3 . . . . . . . . . Blast 4 | . . . . . . . . . . . . . . . 2 . . . . . . . . . . 2 Corrupt 1 | . . . . . . . . . . . . . . . . . 1 . . . . . . . . . Sever 5 | . . . . . . . . . . . . . 2 3 . . . . . . . . . . . . Impale 7 | . . . . . . 2 . . 1 . . 1 . . . . . 3 . . . . . . . . Melee Attacks 198 | . . . . . . 5 . . 7 . 41 24 8 26 2 4 5 48 2 12 5 9 . . . . Impact 14 | . . . . . . . . . . . . . . . . . . . . . 5 9 . . . . Slashing 87 | . . . . . . . . . . . . . 8 26 2 4 5 28 2 12 . . . . . . Piercing 97 | . . . . . . 5 . . 7 . 41 24 . . . . . 20 . . . . . . . . Sneak Attacks 17 | . . . . . . . . . . . 5 . 2 4 1 1 . 1 . 3 . . . . . . Combat Hostiles 5 | . . . . . . . . . . . . . . 4 . . . 1 . . . . . . . . Follow-up Attacks 6 | . . . . . . . . . . . . . . 1 . . . 5 . . . . . . . . Damage Inflicted 16733 | . 713 155 . . 2085 1538 464 1697 1447 . 627 1298 1538 790 624 75 346 1547 . 308 . . . 82 78 1321 Guns 4559 | . 701 22 . . 1429 857 . . 260 . . 425 690 65 . . 110 . . . . . . . . . Cannons 6365 | . . . . . . 324 464 1697 1029 . 81 433 . . 559 . 205 148 . . . . . 82 78 1265 Explosions 1890 | . . 128 . . 656 212 . . . . . . 536 . . . . 358 . . . . . . . . Melee 3781 | . . . . . . 145 . . 148 . 546 440 292 725 65 75 . 1041 . 304 . . . . . . Ramming 138 | . 12 5 . . . . . . 10 . . . 20 . . . 31 . . 4 . . . . . 56 Kinetic 3180 | . 259 . . . 1366 . . . . . . . . . 559 . 110 95 . . . . . . 41 750 Thermal 7333 | . 370 22 . . 63 661 464 1697 1289 . 81 858 1226 65 . . . . . . . . . 82 37 418 Explosive 1354 | . . 128 . . 656 212 . . . . . . . . . . . 358 . . . . . . . . Electromagnetic 947 | . 72 . . . . 520 . . . . . . . . . . 205 53 . . . . . . . 97 Impact . | . . . . . . . . . . . . . . . . . . . . . . . . . . . Slashing 1662 | . . . . . . . . . . . . . 292 725 65 75 . 201 . 304 . . . . . . Piercing 2119 | . . . . . . 145 . . 148 . 546 440 . . . . . 840 . . . . . . . . Highest Corruption 38 | . . . . . . . . . . . 2 10 8 8 12 . 7 9 20 20 11 . 9 . . 38 Average Corruption 7 | . . . . . . . . . . . 1 8 5 8 9 . 3 5 12 17 7 . 5 . . 19 Corruption Purged 38 | . . . . . . . . . . . 2 . 1 . . . 10 . . 9 6 . 9 . . 1 Corruption Blocked . | . . . . . . . . . . . . . . . . . . . . . . . . . . . Effects 270 | . . . . . . . . . . . 6 7 76 21 49 . 2 40 8 15 6 . 4 . . 36 Message Errors 69 | . . . . . . . . . . . . 1 23 8 11 . 1 15 . 1 3 . 1 . . 5 Matter Fused 61 | . . . . . . . . . . . 1 1 19 4 9 . . 11 5 2 1 . . . . 8 Heat Flow Errors 33 | . . . . . . . . . . . 2 1 6 2 7 . . 9 . 3 . . . . . 3 Energy Discharges 35 | . . . . . . . . . . . 1 2 9 2 10 . 1 2 1 2 . . 1 . . 4 Parts Rejected 8 | . . . . . . . . . . . . . 3 1 1 . . . . 1 1 . . . . 1 Parts Fused 2 | . . . . . . . . . . . . . . . . . . . . . . . . . . 2 Data Loss (minor) 24 | . . . . . . . . . . . 2 . 7 1 6 . . 1 . 3 . . . . . 4 Data Loss (major) 13 | . . . . . . . . . . . . 1 3 1 . . . 1 1 2 1 . . . . 3 Misfires 6 | . . . . . . . . . . . . . 1 . 3 . . . . . . . 1 . . 1 Alerts 7 | . . . . . . . . . . . . . 4 1 . . . 1 . . . . 1 . . . Misdirections 5 | . . . . . . . . . . . . . . . 2 . . . . 1 . . . . . 2 Weapon Failures 7 | . . . . . . . . . . . . 1 1 1 . . . . 1 . . . . . . 3 Overload Shots . | . . . . . . . . . . . . . . . . . . . . . . . . . . . Overflow Damage 956 | . . . . . 21 14 . 21 45 . 90 46 137 30 113 35 . 227 . 78 . . . 5 . 94 Projectiles 309 | . . . . . . . . 21 45 . . 30 . . 78 . . 36 . . . . . 5 . 94 Explosions 177 | . . . . . 21 . . . . . . . 137 . . . . 19 . . . . . . . . Melee 470 | . . . . . . 14 . . . . 90 16 . 30 35 35 . 172 . 78 . . . . . . Knockbacks 14 | . . . . . . . . . . . . . . . 4 . . . . . . . . . . 10 Impact . | . . . . . . . . . . . . . . . . . . . . . . . . . . . Kinetic 13 | . . . . . . . . . . . . . . . 4 . . . . . . . . . . 9 Secondary 1 | . . . . . . . . . . . . . . . . . . . . . . . . . . 1 Self-Inflicted Damage 221 | . . . . . 63 95 . . . . . . 34 . . . . . . . . . . . . 29 Shots 6 | . . . . . 2 3 . . . . . . 1 . . . . . . . . . . . . . Rammed 26 | . 3 . . . . . 1 . 3 . . . 6 . 1 . 7 . . 4 . . . . . 1 Targets Rammed 29 | . 5 1 . . . . 1 . 3 . . . 6 . 1 . 7 . . 4 . . . . . 1 Kicked 3 | . 2 1 . . . . . . . . . . . . . . . . . . . . . . . . Crushed . | . . . . . . . . . . . . . . . . . . . . . . . . . . . Highest Temperature 471 | . 36 75 . . 138 471 87 205 24 . 158 283 250 271 284 . 274 218 357 244 84 168 280 108 324 374 Average Temperature 91 | . 8 38 . . 37 141 27 44 13 . 84 129 108 116 89 . 84 67 111 104 38 84 86 43 93 151 Received Heat Transfer 2632 | . 351 48 . . 124 552 36 420 364 . . 83 132 . 39 . 12 93 . 117 155 . . . 31 75 Effects 19 | . . . . . . 11 . . . . . . 1 1 . . . . 3 . . . . . 1 2 Shutdowns 5 | . . . . . . 2 . . . . . . . . . . . . 1 . . . . . 1 1 Energy Bleed 5 | . . . . . . 1 . . . . . . 1 . . . . . 2 . . . . . . 1 Interference 5 | . . . . . . 4 . . . . . . . 1 . . . . . . . . . . . . Damage (major) 4 | . . . . . . 4 . . . . . . . . . . . . . . . . . . . . Siege Activations 2 | . . . . . . . . . . . . . . . . . 2 . . . . . . . . . Total Turns 48 | . . . . . . . . . . . . . . . . . 48 . . . . . . . . . Longest Duration 34 | . . . . . . . . . . . . . . . . . 34 . . . . . . . . . Robots Corrupted 4 | . . . . . . 2 . . . . . . . . . . 1 1 . . . . . . . . Combat Hostiles 4 | . . . . . . 2 . . . . . . . . . . 1 1 . . . . . . . . Parts Fried 15 | . . . . . . 4 . . . . . . 2 . 4 . 2 3 . . . . . . . . Impact Corruptions 1 | . . . . . . . . . . . . . . . . . . . . . . . . . . 1 Robots Melted 2 | . . . . . . 1 . . . . . . 1 . . . . . . . . . . . . . Combat Hostiles 1 | . . . . . . 1 . . . . . . . . . . . . . . . . . . . . Parts Melted 14 | . . . . . . 1 1 2 2 . . 1 4 1 . . . . . . . . . . . 2 Heat Transferred 10915 | . 850 50 . . 111 920 629 2331 1961 . 111 1369 1991 111 . . . . . . . . . 74 37 370 Parts Sabotaged . | . . . . . . . . . . . . . . . . . . . . . . . . . . . Parts Stolen . | . . . . . . . . . . . . . . . . . . . . . . . . . . . Parts Stripped . | . . . . . . . . . . . . . . . . . . . . . . . . . . . Power Chain Reactions 1 | . . . . . . 1 . . . . . . . . . . . . . . . . . . . . Missiles Intercepted . | . . . . . . . . . . . . . . . . . . . . . . . . . . . Alert | -11 -10 -10 -10 -9 -8 -8 -8 -8 -8 -8 -7 -7 -6 -6 -6 -5 -5 -4 -4 -4 -4 -3 -3 -2 -2 -1 ------- Run | Jun Mat Min Exi Min Mat Gar Mat Gar Mat Gar Fac Gar Fac Gar Fac Fac Gar Fac Gar Fac Gar Res Gar Res Gar Acc Peak Influence 1521 | . 244 138 . . 249 747 389 526 390 123 123 1380 861 1521 1025 477 358 373 591 289 193 113 20 13 53 341 Initial 798 | . . 70 . . . 91 364 66 256 118 64 61 724 595 798 475 189 187 261 265 181 103 14 2 9 31 Average 307 | . 107 126 . . 116 438 222 315 232 119 34 968 327 1168 848 396 244 143 514 281 177 74 11 5 29 124 Maximum Alert Level 4 | . 1 . . . 1 3 1 2 1 . . 4 3 4 3 2 1 1 2 1 . . . . . 1 Low Security (%) 51 | 100 86 100 . 100 98 15 46 26 48 100 100 9 30 . . . 23 72 . . 100 100 100 100 100 73 Level 1 21 | . 13 . . . 1 10 53 34 51 . . . 40 . . 38 76 27 10 100 . . . . . 26 Level 2 13 | . . . . . . 71 . 38 . . . 13 19 18 6 61 . . 89 . . . . . . . Level 3 8 | . . . . . . 2 . . . . . 20 9 18 93 . . . . . . . . . . . Level 4 4 | . . . . . . . . . . . . 55 . 62 . . . . . . . . . . . . Level 5 . | . . . . . . . . . . . . . . . . . . . . . . . . . . . High Security . | . . . . . . . . . . . . . . . . . . . . . . . . . . . Max Security . | . . . . . . . . . . . . . . . . . . . . . . . . . . . Squads Dispatched 46 | . 4 . . . 1 . . . . . 3 . 13 . 4 1 . 8 . 2 . 1 . 1 . 8 Investigation 12 | . 3 . . . . . . . . . 1 . 3 . 1 . . 2 . . . 1 . . . 1 Extermination 17 | . . . . . . . . . . . 2 . 5 . 2 . . 4 . 1 . . . . . 3 Reinforcement 13 | . 1 . . . 1 . . . . . . . 3 . . 1 . 2 . . . . . 1 . 4 Assault 2 | . . . . . . . . . . . . . 1 . 1 . . . . . . . . . . . Garrison 2 | . . . . . . . . . . . . . 1 . . . . . . 1 . . . . . . Intercept . | . . . . . . . . . . . . . . . . . . . . . . . . . . . Searches Triggered . | . . . . . . . . . . . . . . . . . . . . . . . . . . . Construction Impeded . | . . . . . . . . . . . . . . . . . . . . . . . . . . . Haulers Reinforced 1 | . . . . . . . . . . . . . 1 . . . . . . . . . . . . . Active Scanning Responses . | . . . . . . . . . . . . . . . . . . . . . . . . . . . Cargo Convoy Interrupts 1 | . . . . . . . . . . . . . . . . . . 1 . . . . . . . . Stealth | -11 -10 -10 -10 -9 -8 -8 -8 -8 -8 -8 -7 -7 -6 -6 -6 -5 -5 -4 -4 -4 -4 -3 -3 -2 -2 -1 --------- Run | Jun Mat Min Exi Min Mat Gar Mat Gar Mat Gar Fac Gar Fac Gar Fac Fac Gar Fac Gar Fac Gar Res Gar Res Gar Acc Distress Signals 11 | . 1 . . . 2 . 1 . 3 . . . 2 . . . . 1 . 1 . . . . . . Communications Jammed 32 | . . . . . . . . . . . . 18 4 . 1 . . 1 . . . . . . . 8 Distress Signals 32 | . . . . . . . . . . . . 18 4 . 1 . . 1 . . . . . . . 8 Times Spotted 317 | . 25 2 . . 26 17 7 16 15 . 11 29 40 30 19 . 4 21 7 4 6 1 . 3 3 31 Peak Tracking Total 8 | . 5 2 . . 7 4 4 5 3 . 6 3 6 8 5 2 2 6 4 4 7 1 . 2 2 7 Tactical Retreats 27 | . 3 . . . 3 2 1 3 1 . 1 . 4 . . . . 3 . . . . . . 1 5 Traps | -11 -10 -10 -10 -9 -8 -8 -8 -8 -8 -8 -7 -7 -6 -6 -6 -5 -5 -4 -4 -4 -4 -3 -3 -2 -2 -1 ------- Run | Jun Mat Min Exi Min Mat Gar Mat Gar Mat Gar Fac Gar Fac Gar Fac Fac Gar Fac Gar Fac Gar Res Gar Res Gar Acc Traps Triggered 44 | . 3 . . . . 6 . 2 . 3 1 10 3 1 5 2 2 4 . . . . . . . 2 Indirectly . | . . . . . . . . . . . . . . . . . . . . . . . . . . . Trap Hack Attempts . | . . . . . . . . . . . . . . . . . . . . . . . . . . . Triggered . | . . . . . . . . . . . . . . . . . . . . . . . . . . . Disarmed . | . . . . . . . . . . . . . . . . . . . . . . . . . . . Reprogrammed . | . . . . . . . . . . . . . . . . . . . . . . . . . . . Reused . | . . . . . . . . . . . . . . . . . . . . . . . . . . . Traps Extracted . | . . . . . . . . . . . . . . . . . . . . . . . . . . . Installed . | . . . . . . . . . . . . . . . . . . . . . . . . . . . Triggered 3 | . . . . . . . . . . . . . . . . . . 3 . . . . . . . . Machines | -11 -10 -10 -10 -9 -8 -8 -8 -8 -8 -8 -7 -7 -6 -6 -6 -5 -5 -4 -4 -4 -4 -3 -3 -2 -2 -1 ---------- Run | Jun Mat Min Exi Min Mat Gar Mat Gar Mat Gar Fac Gar Fac Gar Fac Fac Gar Fac Gar Fac Gar Res Gar Res Gar Acc Machines Disabled 37 | . . . . . 2 1 . 1 1 . 3 2 13 1 6 . 1 4 . . . . . . . 2 Max in Single Turn 4 | . . . . . 1 1 . 1 1 . . . 4 1 . . 1 2 . . . . . . . 1 Garrison Access 4 | . . . . . . . . . . . 2 . 1 . . . . 1 . . . . . . . . Garrison Relay 4 | . . . . . . . . . . . . 3 . 1 . . . . . . . . . . . . Energy Cycler 1 | . . . . . . . . . . . . . . . . . . . . . . . . . . 1 Machines Repaired . | . . . . . . . . . . . . . . . . . . . . . . . . . . . Machines Sabotaged . | . . . . . . . . . . . . . . . . . . . . . . . . . . . Overloaded Fab Kills . | . . . . . . . . . . . . . . . . . . . . . . . . . . . Hacking | -11 -10 -10 -10 -9 -8 -8 -8 -8 -8 -8 -7 -7 -6 -6 -6 -5 -5 -4 -4 -4 -4 -3 -3 -2 -2 -1 --------- Run | Jun Mat Min Exi Min Mat Gar Mat Gar Mat Gar Fac Gar Fac Gar Fac Fac Gar Fac Gar Fac Gar Res Gar Res Gar Acc Machines Accessed 102 | . 6 . 2 . 12 2 6 1 5 1 13 1 19 3 7 2 . 10 1 1 2 2 . 2 1 3 Terminals 61 | . 6 . . . 9 2 5 1 3 1 6 1 10 3 3 . . 3 1 . 2 . . 1 1 3 Fabricators 10 | . . . . . . . . . . . 1 . 3 . 3 . . 2 . . . 1 . . . . Repair Stations 5 | . . . . . 1 . . . 1 . . . 1 . . 1 . 1 . . . . . . . . Recycling Units 5 | . . . . . . . . . . . 2 . 2 . . . . 1 . . . . . . . . Scanalyzers 5 | . . . . . 1 . . . . . 1 . 1 . 1 . . 1 . . . . . . . . Garrison Access 14 | . . . . . 1 . 1 . 1 . 3 . 2 . . 1 . 2 . 1 . 1 . 1 . . Total Hacks 303 | . 10 . 2 . 29 5 13 3 11 3 58 4 72 9 17 2 . 41 5 1 4 3 . 3 2 6 Successful 193 | . 2 . 2 . 20 2 8 . 6 1 48 1 52 2 9 2 . 31 . 1 2 1 . 1 . 2 Failed 109 | . 8 . . . 9 3 5 3 5 2 9 3 20 7 8 . . 10 5 . 2 2 . 2 2 4 Catastrophic 24 | . 2 . . . 2 1 1 2 . 1 . . 5 2 2 . . 5 . . . . . . . 1 Database Lockouts 1 | . . . . . . . . . . . 1 . . . . . . . . . . . . . . . Manual 150 | . 7 . 1 . 25 4 10 3 4 1 25 4 29 1 13 1 . 14 . . . 2 . 2 . 4 Terminals 160 | . 10 . . . 25 5 12 3 8 3 20 4 25 9 9 . . 8 5 . 4 . . 2 2 6 Fabricators 85 | . . . . . . . . . . . 27 . 30 . 4 . . 22 . . . 2 . . . . Repair Stations 6 | . . . . . 1 . . . 2 . . . 1 . . 1 . 1 . . . . . . . . Recycling Units 14 | . . . . . . . . . . . 4 . 7 . . . . 3 . . . . . . . . Scanalyzers 19 | . . . . . 2 . . . . . 1 . 7 . 4 . . 5 . . . . . . . . Garrison Access 17 | . . . . . 1 . 1 . 1 . 6 . 2 . . 1 . 2 . 1 . 1 . 1 . . Terminal Hacks 43 | . . . 2 . 11 2 4 . 4 1 7 1 5 2 1 . . . . . 2 . . . . 1 Record 1 | . . . 1 . . . . . . . . . . . . . . . . . . . . . . . Part Schematic 6 | . . . . . 4 . . . 2 . . . . . . . . . . . . . . . . . Robot Schematic 6 | . . . . . 2 . . . . . 4 . . . . . . . . . . . . . . . Branch Access Points 2 | . . . . . . . . . 1 . . . . . . . . . . . . . . . . 1 Emergency Access Points 2 | . . . . . . 1 . . . . . . . . . . . . . . 1 . . . . . Machine Index 1 | . . . . . . . 1 . . . . . . . . . . . . . . . . . . . Terminal Index 4 | . . . . . 1 . . . . . 1 . 1 . 1 . . . . . . . . . . . Fabricator Index 2 | . . . . . . . . . . . 1 . 1 . . . . . . . . . . . . . Garrison Index 2 | . . . . . 1 . . . . . 1 . . . . . . . . . . . . . . . Unreport Threat 8 | . . . . . 2 . 2 . 1 . . . 3 . . . . . . . . . . . . . Hauler Manifests 1 | . . . . . 1 . . . . . . . . . . . . . . . . . . . . . Zone Layout 1 | . . . . . . . 1 . . . . . . . . . . . . . . . . . . . Garrison Registry 4 | . . . . . . 1 . . . 1 . 1 . 1 . . . . . . . . . . . . Patrol Navigation 2 | . . . . . . . . . . . . . . 1 . . . . . . 1 . . . . . Derelict Proto ID Bank 1 | . . . 1 . . . . . . . . . . . . . . . . . . . . . . . Fabricator Hacks 69 | . . . . . . . . . . . 26 . 23 . . . . 20 . . . . . . . . Load Schematic 36 | . . . . . . . . . . . 13 . 12 . . . . 11 . . . . . . . . Build 33 | . . . . . . . . . . . 13 . 11 . . . . 9 . . . . . . . . Repair Station Hacks 1 | . . . . . . . . . 1 . . . . . . . . . . . . . . . . . Refit 1 | . . . . . . . . . 1 . . . . . . . . . . . . . . . . . Recycling Unit Hacks 2 | . . . . . . . . . . . . . 2 . . . . . . . . . . . . . Retrieve Components 2 | . . . . . . . . . . . . . 2 . . . . . . . . . . . . . Scanalyzer 14 | . . . . . 2 . . . . . . . 7 . 1 . . 4 . . . . . . . . Insert Component 6 | . . . . . 1 . . . . . . . 3 . 1 . . 1 . . . . . . . . Analyze 8 | . . . . . 1 . . . . . . . 4 . . . . 3 . . . . . . . . Garrison Access Hacks 15 | . . . . . 1 . 1 . 1 . 4 . 2 . . 1 . 2 . 1 . 1 . 1 . . Unlock Access 10 | . . . . . 1 . 1 . 1 . 1 . 1 . . 1 . 1 . 1 . 1 . 1 . . Seal Access 4 | . . . . . . . . . . . 2 . 1 . . . . 1 . . . . . . . . Coupler Status 1 | . . . . . . . . . . . 1 . . . . . . . . . . . . . . . Unauthorized Hacks 49 | . 2 . . . 6 . 3 . . . 11 . 13 . 7 1 . 5 . . . . . . . 1 Terminals 26 | . 2 . . . 5 . 3 . . . 7 . 4 . 3 . . 1 . . . . . . . 1 Track 1 | . . . . . . . . . . . 1 . . . . . . . . . . . . . . . Assimilate 2 | . . . . . 1 . . . . . 1 . . . . . . . . . . . . . . . Botnet 17 | . 1 . . . 3 . 2 . . . 4 . 3 . 2 . . 1 . . . . . . . 1 Detonate 1 | . . . . . . . . . . . . . 1 . . . . . . . . . . . . . Operators 5 | . 1 . . . 1 . 1 . . . 1 . . . 1 . . . . . . . . . . . Fabricators 10 | . . . . . . . . . . . 1 . 4 . 4 . . 1 . . . . . . . . Liberate 7 | . . . . . . . . . . . 1 . 2 . 3 . . 1 . . . . . . . . Haulers 2 | . . . . . . . . . . . . . 1 . 1 . . . . . . . . . . . Overload 1 | . . . . . . . . . . . . . 1 . . . . . . . . . . . . . Repair Stations 4 | . . . . . 1 . . . . . . . 1 . . 1 . 1 . . . . . . . . Mechanics 4 | . . . . . 1 . . . . . . . 1 . . 1 . 1 . . . . . . . . Recycling Units 8 | . . . . . . . . . . . 2 . 4 . . . . 2 . . . . . . . . Monitor 1 | . . . . . . . . . . . . . 1 . . . . . . . . . . . . . Reject 2 | . . . . . . . . . . . . . 1 . . . . 1 . . . . . . . . Recyclers 2 | . . . . . . . . . . . 1 . 1 . . . . . . . . . . . . . Mask 3 | . . . . . . . . . . . 1 . 1 . . . . 1 . . . . . . . . Scanalyzers . | . . . . . . . . . . . . . . . . . . . . . . . . . . . Garrison Access 1 | . . . . . . . . . . . 1 . . . . . . . . . . . . . . . Broadcast 1 | . . . . . . . . . . . 1 . . . . . . . . . . . . . . . Data Cores Recovered 4 | . 1 . . . . . . . 1 . 1 . 1 . . . . . . . . . . . . . Used . | . . . . . . . . . . . . . . . . . . . . . . . . . . . Hacking Detections 77 | . 5 . . . 9 2 3 1 5 1 11 1 14 3 5 . . 7 1 . 2 2 . 2 1 2 Full Trace Events 14 | . 1 . . . . 1 . 1 . . 1 . 2 2 1 . . 2 1 . . 1 . . . 1 Feedback Events 3 | . . . . . . . . 1 . . . . . . 1 . . . 1 . . . . . . . Corruption 2 | . . . . . . . . . . . . . . . 1 . . . 1 . . . . . . . Hackware Fried 1 | . . . . . . . . 1 . . . . . . . . . . . . . . . . . . Feedback Blocked . | . . . . . . . . . . . . . . . . . . . . . . . . . . . Robot Schematics Acquired 6 | . . . . . 2 . . . . . 4 . . . . . . . . . . . . . . . Robots Built 64 | . . . . . . . . . . . 26 . 21 . . . . 17 . . . . . . . . Authchips 33 | . . . . . . . . . . . 13 . 11 . . . . 9 . . . . . . . . Time 1989 | . . . . . . . . . . . 871 . 728 . . . . 390 . . . . . . . . Total Robot Build Rating 254 | . . . . . . . . . . . 104 . 83 . . . . 67 . . . . . . . . Part Schematics Acquired 8 | . . . . . 4 . . . . . . . 3 . . . . 1 . . . . . . . . Parts Built . | . . . . . . . . . . . . . . . . . . . . . . . . . . . Authchips . | . . . . . . . . . . . . . . . . . . . . . . . . . . . Time . | . . . . . . . . . . . . . . . . . . . . . . . . . . . Total Part Build Rating . | . . . . . . . . . . . . . . . . . . . . . . . . . . . Parts Repaired . | . . . . . . . . . . . . . . . . . . . . . . . . . . . Time . | . . . . . . . . . . . . . . . . . . . . . . . . . . . Parts Recycled . | . . . . . . . . . . . . . . . . . . . . . . . . . . . Recycled Matter . | . . . . . . . . . . . . . . . . . . . . . . . . . . . Retrieved Matter . | . . . . . . . . . . . . . . . . . . . . . . . . . . . Retrieved Components 11 | . . . . . . . . . . . . . 11 . . . . . . . . . . . . . Parts Scanalyzed 6 | . . . . . 1 . . . . . . . 3 . 1 . . 1 . . . . . . . . Part Schematics Acquired 5 | . . . . . 1 . . . . . . . 3 . . . . 1 . . . . . . . . Parts Damaged 1 | . . . . . . . . . . . . . 1 . . . . . . . . . . . . . Bothacking | -11 -10 -10 -10 -9 -8 -8 -8 -8 -8 -8 -7 -7 -6 -6 -6 -5 -5 -4 -4 -4 -4 -3 -3 -2 -2 -1 ------------ Run | Jun Mat Min Exi Min Mat Gar Mat Gar Mat Gar Fac Gar Fac Gar Fac Fac Gar Fac Gar Fac Gar Res Gar Res Gar Acc Used RIF Installer 7 | . . . . . . . . 2 . 1 . 2 . 1 . . . . 1 . . . . . . . Coupler Efficiency 1 | . . . . . . . . . . . . . . 1 . . . . . . . . . . . . Hotswap 1 | . . . . . . . . . . . . 1 . . . . . . . . . . . . . . Signal Jammer 1 | . . . . . . . . 1 . . . . . . . . . . . . . . . . . . Patrol Navigation 1 | . . . . . . . . . . . . . . . . . . . 1 . . . . . . . Autooverride 2 | . . . . . . . . . . 1 . 1 . . . . . . . . . . . . . . Robots Hacked 4 | . . . . . . . . . . . . . 4 . . . . . . . . . . . . . Non-combat 1 | . . . . . . . . . . . . . 1 . . . . . . . . . . . . . Combat 3 | . . . . . . . . . . . . . 3 . . . . . . . . . . . . . Autooverrided 1 | . . . . . . . . . . . . . 1 . . . . . . . . . . . . . Robot Hacks Applied 4 | . . . . . . . . . . . . . 4 . . . . . . . . . . . . . ignore_repairs 1 | . . . . . . . . . . . . . 1 . . . . . . . . . . . . . find_garrison 1 | . . . . . . . . . . . . . 1 . . . . . . . . . . . . . go_dormant 1 | . . . . . . . . . . . . . 1 . . . . . . . . . . . . . formatsys_high 1 | . . . . . . . . . . . . . 1 . . . . . . . . . . . . . Relay Couplers Released 17 | . . . . . . . . . . . 4 9 . 4 . . . . . . . . . . . . Machine Destruction 13 | . . . . . . . . . . . . 9 . 4 . . . . . . . . . . . . Programmers 4 | . . . . . . . . . . . 4 . . . . . . . . . . . . . . . Attached 1 | . . . . . . . . . . . . 1 . . . . . . . . . . . . . . Fabnet Peak Effective % . | . . . . . . . . . . . . . . . . . . . . . . . . . . . Robots Rewired . | . . . . . . . . . . . . . . . . . . . . . . . . . . . Allies Hacked 13 | . . . . . . . . . . . . 2 5 5 . . . . 1 . . . . . . . Hacks Repelled 2 | . . . . . . . . . . . . 1 1 . . . . . . . . . . . . . Allies | -11 -10 -10 -10 -9 -8 -8 -8 -8 -8 -8 -7 -7 -6 -6 -6 -5 -5 -4 -4 -4 -4 -3 -3 -2 -2 -1 -------- Run | Jun Mat Min Exi Min Mat Gar Mat Gar Mat Gar Fac Gar Fac Gar Fac Fac Gar Fac Gar Fac Gar Res Gar Res Gar Acc Total Allies 103 | . . . . 4 1 . . . . . 29 2 40 7 . . 2 17 1 . . . . . . . Largest Group 26 | . . . . 4 4 1 1 . . . 26 25 17 15 4 . 2 10 9 . . . . . . . Highest-Rated Group 962 | . . . . 71 71 10 10 . . . 962 921 607 503 185 . 160 346 309 . . . . . . . Highest-Rated Ally 80 | . . . . 31 31 10 10 . . . 37 40 47 62 62 . 80 37 47 . . . . . . . Total Orders 54 | . . . . . 2 8 1 . . . 11 1 15 2 . 1 9 1 1 . . 2 . . . . STAY 24 | . . . . . 1 4 1 . . . 8 1 8 . . . . . 1 . . . . . . . ROAM 1 | . . . . . . . . . . . . . . . . . 1 . . . . . . . . . FOLLOW 14 | . . . . . 1 4 . . . . 3 . 6 . . . . . . . . . . . . . AID 4 | . . . . . . . . . . . . . 1 2 . . . 1 . . . . . . . . EXPLORE 7 | . . . . . . . . . . . . . . . . 1 4 . . . . 2 . . . . RETURN 4 | . . . . . . . . . . . . . . . . . 4 . . . . . . . . . Ally Attacks 675 | . . . . . 25 . . . . . 27 145 213 95 53 . . 92 25 . . . . . . . Total Damage 17194 | . . . . . 318 . . . . . 888 4359 4926 2229 1766 . . 1278 1430 . . . . . . . Kills 148 | . . . . . 5 . . . . . 6 45 36 24 12 . . 8 12 . . . . . . . Allies Corrupted . | . . . . . . . . . . . . . . . . . . . . . . . . . . . Allies Melted . | . . . . . . . . . . . . . . . . . . . . . . . . . . . Intel | -11 -10 -10 -10 -9 -8 -8 -8 -8 -8 -8 -7 -7 -6 -6 -6 -5 -5 -4 -4 -4 -4 -3 -3 -2 -2 -1 ------- Run | Jun Mat Min Exi Min Mat Gar Mat Gar Mat Gar Fac Gar Fac Gar Fac Fac Gar Fac Gar Fac Gar Res Gar Res Gar Acc Robot Analysis Total . | . . . . . . . . . . . . . . . . . . . . . . . . . . . Derelict Logs Recovered 3 | . . . . 3 . . . . . . . . . . . . . . . . . . . . . . Drone Launches 6 | . . . . . . . . . . . . . . . . 3 1 . . . . 2 . . . . Drone Recoveries 2 | . . . . . . . . . . . . . . . . 2 . . . . . . . . . . Exploration | -11 -10 -10 -10 -9 -8 -8 -8 -8 -8 -8 -7 -7 -6 -6 -6 -5 -5 -4 -4 -4 -4 -3 -3 -2 -2 -1 ------------- Run | Jun Mat Min Exi Min Mat Gar Mat Gar Mat Gar Fac Gar Fac Gar Fac Fac Gar Fac Gar Fac Gar Res Gar Res Gar Acc Turns Passed 25430 | 56 761 118 362 268 1493 1294 612 1162 776 394 2882 1260 4456 699 1500 655 1218 1910 283 306 179 572 361 356 485 1012 Spaces Moved 16442 | 42 491 79 270 181 968 558 333 425 228 219 2364 875 3149 511 920 468 580 1690 180 160 93 281 90 228 159 900 Core 355 | 2 . . . . . . . . . . . . 327 . . . . . . . . . . . . 26 Treads 3957 | 3 70 . . . . 255 122 425 180 . . . . 80 848 . 407 403 52 160 36 230 90 228 159 209 Legs 480 | . 324 79 77 . . . . . . . . . . . . . . . . . . . . . . . Wheels 9419 | 37 97 . 193 181 968 303 211 . 48 219 2364 831 2822 431 72 468 173 . . . . . . . . 1 Hover 139 | . . . . . . . . . . . . 38 . . . . . . . . 50 51 . . . . Flight 2092 | . . . . . . . . . . . . 6 . . . . . 1287 128 . 7 . . . . 664 Fastest Speed 23 | 50 80 120 120 145 120 145 120 145 110 110 101 40 50 95 125 125 125 23 23 145 40 40 145 145 145 25 Average Speed 116 | 91 117 120 132 145 133 164 150 201 225 119 110 111 106 105 154 125 147 58 76 149 86 125 145 145 145 67 Slowest Speed 330 | 160 160 120 145 145 160 250 237 233 330 125 140 185 250 157 250 125 250 157 145 225 145 145 145 145 145 305 Overloaded Moves . | . . . . . . . . . . . . . . . . . . . . . . . . . . . Propulsion Burnouts . | . . . . . . . . . . . . . . . . . . . . . . . . . . . Robots Hopped 28 | . . . . . . . . . . . . 1 . . . . . 13 . . . . . . . 14 Cave-ins Triggered 5 | . . . . . . . . . . . . . . . . . 1 . 2 . . . 2 . . . Exploration Rate (%) 36 | 4 79 26 70 67 72 72 30 49 26 33 27 79 53 69 25 17 33 28 28 6 22 8 13 7 26 25 Regions Visited 26 Branch Regions 3 Pre-discovered Areas 1 | . . . 1 . . . . . . . . . . . . . . . . . . . . . . . Known Exits Taken 11 | . . . . 1 1 . 1 . 1 . 1 . 1 . . 1 . 1 . 1 . 1 . 1 . . Unknown Exits Taken 5 | 1 1 1 1 . . . . . . . . . . . 1 . . . . . . . . . . . Scrap Searched 2 | . . 1 . 1 . . . . . . . . . . . . . . . . . . . . . . Spaces Dug 231 | . . . . . 15 2 6 . . . 12 . 12 . . 3 10 32 24 7 10 6 41 2 10 39 Terrain Destroyed 459 | . . 21 . . 69 16 13 . 16 . 13 . 48 . 6 3 14 72 33 7 15 8 44 2 10 49 Melee 51 | . . . . . . . . . . . 12 . 1 . . 3 4 16 2 7 1 5 . . . . Projectile 270 | . . . . . 42 . 13 . 16 . 1 . 11 . 6 . 7 21 31 . 14 3 44 2 10 49 AOE 135 | . . 21 . . 27 16 . . . . . . 36 . . . . 35 . . . . . . . . Terrain Rammed 3 | . . . . . . . . . . . . . . . . . . . . . . . . . . 3 Walls Destroyed . | . . . . . . . . . . . . . . . . . . . . . . . . . . . Machines Disabled . | . . . . . . . . . . . . . . . . . . . . . . . . . . . Actions | -11 -10 -10 -10 -9 -8 -8 -8 -8 -8 -8 -7 -7 -6 -6 -6 -5 -5 -4 -4 -4 -4 -3 -3 -2 -2 -1 --------- Run | Jun Mat Min Exi Min Mat Gar Mat Gar Mat Gar Fac Gar Fac Gar Fac Fac Gar Fac Gar Fac Gar Res Gar Res Gar Acc Total 21535 | 56 584 94 274 187 1135 820 414 631 399 349 2573 1085 4146 625 978 533 870 2510 288 202 170 478 277 247 400 1210 Wait 3472 | 5 29 9 . 7 82 137 42 146 104 103 128 57 844 28 27 35 165 660 62 16 48 157 145 12 220 204 Move 16370 | 41 490 78 269 180 968 557 333 424 228 218 2364 872 3149 510 919 468 578 1665 177 159 92 281 88 228 158 876 Hop 23 | . . . . . . . . . . . . 1 . . . . . 12 . . . . . . . 10 Pick Up 147 | 4 5 . . . 18 12 8 . 5 1 5 26 8 9 3 6 13 16 . 4 . 3 . . . 1 Fast Attach 136 | 6 3 . 1 . 8 2 . 2 4 . 7 7 24 6 3 1 4 14 1 6 1 16 . 3 4 13 Attach 112 | . 2 1 . . 8 4 1 3 3 . 14 9 9 1 . 2 4 23 5 1 5 1 . . 1 15 Detach 41 | . 1 . 2 . 2 . . . . . . 2 2 1 . . . 14 3 . 2 . . . 1 11 Swap 82 | . 3 . 2 . 8 10 5 3 3 2 5 . 11 10 4 3 8 2 1 . . 1 . . 1 . Drop 127 | . 2 . . . 13 13 5 1 6 . 7 7 6 11 4 6 12 18 . . 2 7 . . 3 4 Fire 663 | . 44 5 . . 28 68 19 50 36 1 2 38 79 10 15 . 57 26 35 . 15 3 43 4 12 73 Melee 190 | . . . . . . 5 . . 7 . 41 24 8 24 2 4 5 42 2 12 5 9 . . . . Ram 8 | . . . . . . . . . . . . . 6 . . . . . . . . . . . . 2 Kick 3 | . 2 1 . . . . . . . . . . . . . . . . . . . . . . . . Crush 20 | . 3 . . . . . 1 . 3 . . . . . 1 . 7 . . 4 . . . . . 1 Escape Stasis 140 | . . . . . . 12 . 2 . 24 . 41 . 15 . 8 17 18 2 . . . 1 . . . Rewire 1 | . . . . . . . . . . . . 1 . . . . . . . . . . . . . . Trap . | . . . . . . . . . . . . . . . . . . . . . . . . . . . Miscellaneous . | . . . . . . . . . . . . . . . . . . . . . . . . . . . Route ------- -11/Junkyard -10/Materials (discovered 4 exits: [*Mat x2] / [*Min x2]) -10/Mines -10/Exiles -9/Mines -8/Materials (discovered 3 exits: *Fac x2 / Gar) -8/Garrison (discovered 3 exits: *Mat x3) -8/Materials -8/Garrison -8/Materials -8/Garrison (discovered 4 exits: *Fac x3 / [Mat]) -7/Factory (discovered 2 exits: *Fac / Gar) -7/Garrison (discovered 3 exits: *Fac x3) -6/Factory (discovered 3 exits: *Fac x2 / Gar) -6/Garrison (discovered 3 exits: *Fac x3) -6/Factory -5/Factory -5/Garrison -4/Factory (discovered 2 exits: [*Upp] / Gar) -4/Garrison -4/Factory -4/Garrison -3/Research -3/Garrison -2/Research -2/Garrison -1/Access (discovered 1 exit: Com) History --------- Turn | Location | Event 16 | -11/Junkyard | Discovered new exit (range 15) 57 | -11/Junkyard | Entered Materials 305 | -10/Materials | Build established: Mutant 405 | -10/Materials | Discovered new exit (range 8) 478 | -10/Materials | Discovered new exit (range 11) 558 | -10/Materials | Discovered new exit (range 13) 655 | -10/Materials | Discovered new exit (range 12) 761 | -10/Materials | Core integrity fell below 50% 818 | -10/Materials | Entered Mines 828 | -10/Mines | Met a Derelict bent on vengeance 840 | -10/Mines | Core integrity fell below 20% 930 | -10/Mines | Deemed a non-threat by the Exiles lab entrance 930 | -10/Mines | Discovered new exit (range 6) 936 | -10/Mines | Entered Exiles 965 | -10/Exiles | Met 8R-AWN 987 | -10/Exiles | Met EX-HEX 1053 | -10/Exiles | Met EX-DEC 1076 | -10/Exiles | Learned location of Zion (-6) 1098 | -10/Exiles | Met EX-BIN 1116 | -10/Exiles | Aligned with FarCom system 1118 | -10/Exiles | Given EX-Vault access code 1149 | -10/Exiles | Opened EX-Vault 1160 | -10/Exiles | Found AWS/Gauss 1189 | -10/Exiles | Warned to stay clear of 0b10 Research branches 1286 | -10/Exiles | Discovered new exit (range 10) 1298 | -10/Exiles | Left Exiles lab with AWS/Gauss 1298 | -10/Exiles | Entered Mines 1346 | -9/Mines | Received a Mining Laser from a helpful Derelict 1349 | -9/Mines | Learned Materials security intel 1441 | -9/Mines | Identified exit to Materials 1483 | -9/Mines | Learned location of 1 exit from Materials 1531 | -9/Mines | Assisted by bots powering up and referring to "LRC-V3" 1566 | -9/Mines | Entered Materials 1566 | -8/Materials | Accompanied by 4 allies 1566 | -8/Materials | Evolved 4 slots: Propulsion x1, Utility x3 1567 | -8/Materials | Identified exit to Factory 1986 | -8/Materials | Build established: Hacker-Mutant 2926 | -8/Materials | Discovered exit to Factory (range 11) 3059 | -8/Materials | Identified exit to Garrison 3059 | -8/Materials | Entered Garrison 3059 | -8/Garrison | Accompanied by 1 ally 3313 | -8/Garrison | Triggered checkpoint 3363 | -8/Garrison | Triggered checkpoint 3598 | -8/Garrison | Discovered new exit (range 12) 3608 | -8/Garrison | Triggered checkpoint 3718 | -8/Garrison | Triggered checkpoint 3730 | -8/Garrison | Triggered checkpoint 3862 | -8/Garrison | Triggered checkpoint 4325 | -8/Garrison | Discovered new exit (range 61) 4325 | -8/Garrison | Discovered new exit (range 13) 4325 | -8/Garrison | Discovered new exit (range 35) 4353 | -8/Garrison | Entered Materials 4353 | -8/Materials | Accompanied by 1 ally 4965 | -8/Materials | Identified exit to Garrison 4965 | -8/Materials | Entered Garrison 5009 | -8/Garrison | Installed Relay Interface Framework 5022 | -8/Garrison | Triggered checkpoint 5212 | -8/Garrison | Triggered checkpoint 5470 | -8/Garrison | Core integrity fell below 50% 5576 | -8/Garrison | Discovered new exit (range 8) 5801 | -8/Garrison | Expanded RIF knowledge: Signal Jamming 5868 | -8/Garrison | Hacking Suite fried by hacking feedback 6127 | -8/Garrison | Entered Materials 6619 | -8/Materials | Core integrity fell below 20% 6659 | -8/Materials | Lost 5 parts (2n2u1w) 6903 | -8/Materials | Identified exit to Garrison 6903 | -8/Materials | Entered Garrison 6946 | -8/Garrison | Triggered checkpoint 7120 | -8/Garrison | Triggered checkpoint 7164 | -8/Garrison | Discovered exit to Factory (range 10) 7214 | -8/Garrison | Discovered exit to Factory (range 65) 7214 | -8/Garrison | Discovered exit to Factory (range 14) 7214 | -8/Garrison | Discovered exit to Factory (range 91) 7214 | -8/Garrison | Discovered new exit (range 78) 7249 | -8/Garrison | Expanded RIF knowledge: Autooverride 7297 | -8/Garrison | Entered Factory 7297 | -7/Factory | Evolved 2 slots: Propulsion x1, Utility x1 8136 | -7/Factory | Build established: Scavenger-Mutant 8182 | -7/Factory | Fabricated P-60 Hacker? 8445 | -7/Factory | Discovered new exit (range 14) 8504 | -7/Factory | Central database locked down 8863 | -7/Factory | Fabricated P-60 Hacker? 9037 | -7/Factory | Fabricated P-60 Hacker? 9240 | -7/Factory | Fabricated P-60 Hacker? 9385 | -7/Factory | Fabricated P-60 Hacker? 9463 | -7/Factory | Fabricated P-60 Hacker? 9539 | -7/Factory | Build established: Commander-Mutant 9544 | -7/Factory | Fabricated P-60 Hacker? 9628 | -7/Factory | Fabricated P-60 Hacker (x2) 9696 | -7/Factory | Fabricated P-60 Hacker? 9794 | -7/Factory | Fabricated P-60 Hacker? 9880 | -7/Factory | Fabricated P-60 Hacker? 9979 | -7/Factory | Fabricated P-60 Hacker? 10057 | -7/Factory | Fabricated P-60 Hacker? 10179 | -7/Factory | Identified exit to Garrison 10179 | -7/Factory | Entered Garrison 10179 | -7/Garrison | Accompanied by 25 allies 10229 | -7/Garrison | Expanded RIF knowledge: Hotswap 10302 | -7/Garrison | Triggered checkpoint 10302 | -7/Garrison | Triggered checkpoint 10334 | -7/Garrison | Triggered checkpoint 10346 | -7/Garrison | Triggered checkpoint 10406 | -7/Garrison | Triggered checkpoint 10490 | -7/Garrison | Triggered checkpoint 10546 | -7/Garrison | Triggered checkpoint 10553 | -7/Garrison | Hacker 4m assimilated hostile I-36 Angel 10564 | -7/Garrison | Discovered new exit (range 15) 10684 | -7/Garrison | Discovered new exit (range 57) 10684 | -7/Garrison | Discovered new exit (range 20) 10684 | -7/Garrison | Discovered new exit (range 58) 10760 | -7/Garrison | Triggered checkpoint 10795 | -7/Garrison | Garrison Relay disabled 10802 | -7/Garrison | Garrison Relay disabled 10920 | -7/Garrison | Triggered checkpoint 11100 | -7/Garrison | Build established: Hacker-Mutant 11123 | -7/Garrison | Garrison Relay disabled 11164 | -7/Garrison | P-70 Sage assimilated allied Angel 4a 11204 | -7/Garrison | System corruption reached 10% 11247 | -7/Garrison | Expanded RIF knowledge: Autooverride 11257 | -7/Garrison | Lost 8 parts (1p3n2u2w) 11439 | -7/Garrison | Entered Factory 11439 | -6/Factory | Evolved 2 slots: Power x1, Utility x1 11487 | -6/Factory | Build established: Scavenger-Mutant 11932 | -6/Factory | Discovered new exit (range 5) 12417 | -6/Factory | Fabricated P-60 Hacker? 12621 | -6/Factory | Fabricated P-60 Hacker? 12715 | -6/Factory | Hacker 5d assimilated hostile G-50 Soldier 13601 | -6/Factory | Garrison activated, responded to threat 13713 | -6/Factory | Lost 8 parts (1p3n4u) 13848 | -6/Factory | Fabricated P-60 Hacker? 13963 | -6/Factory | Build established: Mutant 14463 | -6/Factory | Fabricated P-60 Hacker? 14466 | -6/Factory | Build established: Scavenger-Mutant 14552 | -6/Factory | Fabricated P-60 Hacker (x2) 14620 | -6/Factory | Fabricated P-60 Hacker (x2) 14688 | -6/Factory | Fabricated P-60 Hacker? 14795 | -6/Factory | Fabricated P-60 Hacker (x2) 14868 | -6/Factory | Fabricated P-60 Hacker (x2) 14937 | -6/Factory | Fabricated P-60 Hacker (x2) 14977 | -6/Factory | Build established: Commander-Mutant 14997 | -6/Factory | Fabricated M-28 Smith (x1) 15472 | -6/Factory | Hacker 5t assimilated hostile G-67 Veteran 15477 | -6/Factory | Hacker 5m assimilated hostile G-50 Soldier 15639 | -6/Factory | First assault squad dispatched 15727 | -6/Factory | Hacker 5r assimilated hostile G-67 Veteran 15798 | -6/Factory | Discovered new exit (range 9) 15823 | -6/Factory | Identified exit to Garrison 15895 | -6/Factory | Entered Garrison 15895 | -6/Garrison | Accompanied by 14 allies 15914 | -6/Garrison | Triggered checkpoint 15916 | -6/Garrison | Hacker 5j assimilated hostile S-27 Virus 16018 | -6/Garrison | Triggered checkpoint 16026 | -6/Garrison | Triggered checkpoint 16047 | -6/Garrison | Triggered checkpoint 16109 | -6/Garrison | Discovered new exit (range 23) 16109 | -6/Garrison | Discovered new exit (range 32) 16109 | -6/Garrison | Discovered new exit (range 60) 16110 | -6/Garrison | Triggered checkpoint 16147 | -6/Garrison | Hacker 5q assimilated hostile G-50 Soldier 16152 | -6/Garrison | Hacker 5m assimilated hostile C-17 Slicer 16168 | -6/Garrison | Triggered checkpoint 16183 | -6/Garrison | Triggered checkpoint 16185 | -6/Garrison | Core integrity fell below 50% 16194 | -6/Garrison | Hacker 5i assimilated hostile S-27 Virus 16233 | -6/Garrison | Expanded RIF knowledge: Coupler Efficiency 16358 | -6/Garrison | Triggered checkpoint 16383 | -6/Garrison | Garrison Relay disabled 16433 | -6/Garrison | Found Enh. Force Lance 16581 | -6/Garrison | Found embedded Infiltrators 16594 | -6/Garrison | Entered Factory 16594 | -6/Factory | Accompanied by 4 allies 16761 | -6/Factory | Build established: Mutant 17034 | -6/Factory | Discovered new exit (range 12) 17570 | -6/Factory | System corruption reached 10% 17994 | -6/Factory | First assault squad dispatched 18094 | -6/Factory | Entered another Factory area 18094 | -5/Factory | Evolved 2 slots: Propulsion x1, Utility x1 18522 | -5/Factory | Spotted B-75 Beast 18626 | -5/Factory | Build established: Infiltrator-Mutant 18745 | -5/Factory | Identified exit to Garrison 18749 | -5/Factory | Entered Garrison 18832 | -5/Garrison | Triggered checkpoint 18919 | -5/Garrison | Spotted B-75 Beast 19112 | -5/Garrison | Destroyed B-75 Beast 19170 | -5/Garrison | Triggered checkpoint 19558 | -5/Garrison | Build established: Mutant 19646 | -5/Garrison | Found embedded Infiltrators 19651 | -5/Garrison | Discovered new exit (range 12) 19875 | -5/Garrison | Build established: Scavenger-Mutant 19877 | -5/Garrison | Crushed by falling debris 19962 | -5/Garrison | Triggered checkpoint 19967 | -5/Garrison | Entered Factory 19967 | -4/Factory | Evolved 2 slots: Propulsion x1, Utility x1 20174 | -4/Factory | Discovered new exit (range 3) 20282 | -4/Factory | Build established: Hacker-Mutant 20651 | -4/Factory | Fabricated P-60 Hacker? 20752 | -4/Factory | Cargo convoy interrupted 21084 | -4/Factory | Build established: Hacker-Sprinter 21385 | -4/Factory | Fabricated P-60 Hacker (x2) 21429 | -4/Factory | Fabricated P-60 Hacker (x2) 21473 | -4/Factory | Fabricated P-60 Hacker (x2) 21527 | -4/Factory | Fabricated P-60 Hacker (x2) 21571 | -4/Factory | Fabricated P-60 Hacker? 21714 | -4/Factory | Fabricated P-60 Hacker (x2) 21758 | -4/Factory | Fabricated P-60 Hacker (x2) 21764 | -4/Factory | Build established: Commander-Sprinter 21796 | -4/Factory | Fabricated M-28 Smith (x1) 21839 | -4/Factory | Spotted B-86 Titan 21844 | -4/Factory | Destroyed B-86 Titan 21876 | -4/Factory | Identified exit to Garrison 21877 | -4/Factory | Entered Garrison 21877 | -4/Garrison | Accompanied by 9 allies 21900 | -4/Garrison | Triggered checkpoint 21940 | -4/Garrison | System corruption reached 10% 21956 | -4/Garrison | Triggered checkpoint 22075 | -4/Garrison | Crushed by falling debris 22078 | -4/Garrison | Crushed by falling debris 22101 | -4/Garrison | Discovered new exit (range 10) 22106 | -4/Garrison | Lost 4 parts (2p1n1u) 22139 | -4/Garrison | Expanded RIF knowledge: Patrol Navigation 22160 | -4/Garrison | Entered Factory 22221 | -4/Factory | Build established: Hacker-Mutant 22427 | -4/Factory | Garrison activated, responded to threat 22455 | -4/Factory | Identified exit to Garrison 22466 | -4/Factory | Entered Garrison 22468 | -4/Garrison | Triggered checkpoint 22493 | -4/Garrison | Lost 3 parts (1p1n1w) 22641 | -4/Garrison | Discovered new exit (range 11) 22645 | -4/Garrison | Entered Research 22645 | -3/Research | Evolved 2 slots: Power x1, Propulsion x1 22671 | -3/Research | Lost 9 parts (1p5n3u) 22972 | -3/Research | Build established: Assassin 23217 | -3/Research | Identified exit to Garrison 23217 | -3/Research | Entered Garrison 23442 | -3/Garrison | Crushed by falling debris 23466 | -3/Garrison | Crushed by falling debris 23473 | -3/Garrison | Lost 4 parts (4u) 23538 | -3/Garrison | Discovered new exit (range 10) 23578 | -3/Garrison | Entered Research 23578 | -2/Research | Evolved 2 slots: Propulsion x1, Utility x1 23728 | -2/Research | Build established: Mutant 23934 | -2/Research | Identified exit to Garrison 23934 | -2/Research | Entered Garrison 24028 | -2/Garrison | Triggered checkpoint 24406 | -2/Garrison | Discovered new exit (range 10) 24419 | -2/Garrison | Entered Access 24419 | -1/Access | Evolved 2 slots: Weapon x2 24784 | -1/Access | System corruption reached 10% 24847 | -1/Access | Lost 8 parts (1p6n1w) 25063 | -1/Access | Identified exit to Command 25182 | -1/Access | Spotted B-99 Colossus 25183 | -1/Access | Spotted B-99 Colossus 25270 | -1/Access | Lost 4 parts (1p1n1u1w) 25402 | -1/Access | Energy Cycler disabled 25406 | -1/Access | System corruption reached 30% 25415 | -1/Access | Core integrity fell below 50% 25423 | -1/Access | Core integrity fell below 20% 25431 | -1/Access | Core destroyed Last Messages --------------- 25421_ Slug penetrates Reinforced Barrier. 25422_ Penetrated by Slug. 25422_ Slug penetrates Sealed Heavy Doors. 25424_ B-99 Colossus activates siege mode. 25425_ Penetrated by Slug. 25425_ Enh. Nova Cannon destroyed. 25426_ Slug penetrates Sealed Heavy Doors. 25426_ Penetrated by Slug. 25426_ Slug penetrates Sealed Heavy Doors. 25426_ Penetrated by Slug. 25428_ Slug penetrates Sealed Heavy Doors. 25430_ Slammed into Sealed Heavy Doors. 25430_ Machine Analyzer destroyed. 25430_ System corrupted by crushing effect (+2). 25430_ Terrain Scan Processor broken. 25430_ Destabilizing: Short circuit. 25430_ Adv. Targeting Computer broken. 25430_ Destabilizing: Short circuit. 25431_ Slammed into Sealed Heavy Doors. 25431_ Destabilizing: Core damaged (-64). Map ----- +----------------------------------------------------+ | ????????????????????????????????????# # | | ????????????????????????????????????# # | | ????????????????????????????????????# # | | ???????????????????????????############+##+####### | | ????????????"T????????? +?????? | | ????????????""????????? #?????? | | ???????????????????????# ""####### #???" " | | ???????????????????????? ????????# #??""G" | | ????????????????????????????????????????# #??? | | ????????????????????????????????????????# #?? ? | | ????????????????????????????????????????# ###/### | | ????????????????????????????????????????# | | ????????????????????????????????????????# | | ????????????????????????????????????????# | | ????????????????????????????????????????# | | ????????????????????????????????????????# | | ????????????H???????????????????????????# | | ????? ??????????????????????????????????# | | ????? ?#####+#######????????????????????# ! | | ????? # ####?????????????????# ##### | | ????? # = ## ##????????????????# ##???? | | ????? # """ #####????????????#####/######? | | ????? # ""T"" #=# #????????????# #?? | | ????? + "" "" ## #????????????# #?? | | ????# # ### #"""?????????# #?? | | ????# # #?###"@"?????????# #?? | | ????# # #?# #p"""""""""#?# +?? | | ????# # #?# #%p #?# #?? | | ????# # #?###%BB #?# #?? | | ????# # #?# # BB BB #?# #?? | | ????# # ##### BB #?# +?? | | ????# #############"## # % #?# #?? | | ????# #############"## # %% ### #?? | | ??# # ## ##% # "###########?? | | # # ! ####""#" #### ##???????????? | | + + # # #?####????????????? | | # # # / #?????????????????? | | ??# # " # / #?????????????????? | | ????# # """" " " #?????????????????? | | ????# # """"" " " #?????????????????? | | ????# # """"" " % "% #?????????????????? | | ????+ # """" " %% % #?????????????????? | | ????### " "% " | #?????????????????? | | ??????# #! " #?????????????????? | | ??????# # " #?????????????????? | | ??????#######+###### " #?????????????????? | | ???????????# + " +?????????????????? | | ???????????# ##### # #?????????????????? | | ???????????# #???######## #?????????????????? | | ???????????# #??????????# #?????????????????? | +----------------------------------------------------+ Best States ------------- Heat Dissipation 93 Energy Generation 67 Energy Capacity 520 Matter Stores 300 Matter Capacity 300 Sight Range 16 Terrain Scan Range 16 Terrain Scan Density 85 Jamming Range 16 Cloak Strength 3 Armor Coverage 600 Resistance: KI 25 Resistance: TH 20 Evasion (%) 72 Targeting Accuracy 8 Melee Accuracy 13 Target Analysis 5 Recoil Reduction 3 Particle Charging 20 Offensive Hacking 30 Defensive Hacking 26 Relay Coupler Types 1 Relay Coupler Value 23 Authchip Count 15 Item Schematics ----------------- Hacking Suite | -8/Materials | Hacked System Shield | -8/Materials | Hacked Med. Storage Unit | -8/Materials | Scanalyzed Surge Thruster | -8/Materials | Hacked Imp. System Restoration Module | -6/Factory | Scanalyzed Transmission Jammer | -6/Factory | Scanalyzed Imp. Remote Datajack | -6/Factory | Scanalyzed Q-thruster | -4/Factory | Scanalyzed Robot Schematics ------------------ G-47 Trooper | -8/Materials | Hacked D-53 Grenadier | -8/Materials | Hacked P-60 Hacker | -7/Factory | Hacked M-28 Smith | -7/Factory | Hacked I-36 Angel | -7/Factory | Hacked Y-54 Guardian | -7/Factory | Hacked Fabricated ------------ P-60 Hacker | x2 | -7/Factory | Authchip P-60 Hacker | x2 | -7/Factory | Authchip P-60 Hacker | x2 | -7/Factory | Authchip P-60 Hacker | x2 | -7/Factory | Authchip P-60 Hacker | x2 | -7/Factory | Authchip P-60 Hacker | x2 | -7/Factory | Authchip P-60 Hacker | x2 | -7/Factory | Authchip P-60 Hacker | x2 | -7/Factory | Authchip P-60 Hacker | x2 | -7/Factory | Authchip P-60 Hacker | x2 | -7/Factory | Authchip P-60 Hacker | x2 | -7/Factory | Authchip P-60 Hacker | x2 | -7/Factory | Authchip P-60 Hacker | x2 | -7/Factory | Authchip P-60 Hacker | x2 | -6/Factory | Authchip P-60 Hacker | x2 | -6/Factory | Authchip P-60 Hacker | x2 | -6/Factory | Authchip P-60 Hacker | x2 | -6/Factory | Authchip P-60 Hacker | x2 | -6/Factory | Authchip P-60 Hacker | x2 | -6/Factory | Authchip P-60 Hacker | x2 | -6/Factory | Authchip P-60 Hacker | x2 | -6/Factory | Authchip P-60 Hacker | x2 | -6/Factory | Authchip P-60 Hacker | x2 | -6/Factory | Authchip M-28 Smith | x1 | -6/Factory | Authchip P-60 Hacker | x2 | -4/Factory | Authchip P-60 Hacker | x2 | -4/Factory | Authchip P-60 Hacker | x2 | -4/Factory | Authchip P-60 Hacker | x2 | -4/Factory | Authchip P-60 Hacker | x2 | -4/Factory | Authchip P-60 Hacker | x2 | -4/Factory | Authchip P-60 Hacker | x2 | -4/Factory | Authchip P-60 Hacker | x2 | -4/Factory | Authchip M-28 Smith | x1 | -4/Factory | Authchip Alien Tech Used ----------------- None Achievements -------------- Ambidextrous Challenges ------------ None Game ------ Seed DirtyPointyBarrier Manual? 0 Play Time 05:02:51 Cumulative 407.0 hours Start 2023.10.04 @ 21:05:33 End 2023.10.05 @ 13:19:50 Sessions 3 Manual Loads 0 Difficulty Rogue Special Mode None Game No. 249 Rogue 246 Adventurer 3 Explorer 0 Win Type - Total 7 Types 6/0/1/0/0/0/0/0/0 Lore% 69 Gallery% 76 Achievement% 66 Wizard Run 0 Options --------- ASCII 0 Keyboard 0 Movement Numpad Keybinds 0 Fullscreen 1 Font 18/SmallcapsGlow Map View 76x50 Tactical HUD 1 Map Filters NONE Filters NONE Steam 1 RUN: ddacf8db-82a9-46b1-be82-a8480ca28c32